lending/lending_fUSD_20250706
["ID","MTS","AMOUNT","RATE_DAILY","PERIOD"]
[369997692,1751817068378,-817.21,0.00019726,2]
[369997693,1751817068388,-339.37,0.00019726,2]
[369997694,1751817068399,-460.0,0.00019726,2]
[369997695,1751817068409,-460.0,0.00019726,2]
[369997696,1751817068419,-1000.0,0.00019726,2]
[369997697,1751817068430,-199.17692607,0.00019726,2]
[369997698,1751817068441,-156.587,0.00019726,2]
[369997699,1751817068451,-215.0738,0.00019758,2]
[369997700,1751817068461,-212.0,0.00019758,2]
[369997701,1751817068471,-212.0,0.00019758,2]
[369997702,1751817068480,-212.0,0.00019758,2]
[369997703,1751817068490,-212.0,0.00019758,2]
[369997704,1751817068500,-214.0,0.00019758,2]
[369997705,1751817068509,-214.0,0.00019758,2]
[369997706,1751817068520,-214.0,0.00019758,2]
[369997707,1751817068530,-214.0,0.00019758,2]
[369997708,1751817068539,-214.0,0.00019758,2]
[369997709,1751817068549,-400.0,0.0001977,2]
[369997710,1751817068559,-159.85957649,0.00019773,2]
[369997711,1751817068569,-214.0,0.0001978,2]
[369997712,1751817068578,-207.0,0.0001978,2]
[369997713,1751817068588,-543.23082246,0.0001978,2]
[369997714,1751817068597,-500.9,0.00019788,2]
[369997715,1751817068607,-2900.0,0.000198,7]
[369997716,1751817068616,-1247.97534239,0.000198,2]
[369997717,1751817068626,-500.0,0.00019825,2]
[369997718,1751817068635,-2312.82,0.00019829,2]
[369997719,1751817068646,-794.68160589,0.0001983,15]
[369997720,1751817068656,-1000.0,0.00019836,2]
[369997721,1751817068665,-543.23082246,0.0001984,2]
[369997722,1751817068675,-246.28,0.00019885,2]
[369997723,1751817068685,-626.85,0.00019885,2]
[369997724,1751817068694,-5171.77213,0.00019886,2]
[369997725,1751817068703,-1971.491338,0.00019886,2]
[369997726,1751817068713,-72301.19303705,0.00019886,2]
[369997727,1751817068790,-6200.56984065,0.00019886,2]
[369997728,1751817068801,-151.0,0.00019886,2]
[369997729,1751817068811,-152.0,0.00019889,2]
[369997730,1751817068821,-152.0,0.00019889,2]
[369997731,1751817068830,-152.0,0.00019889,2]
[369997732,1751817068840,-152.0,0.00019889,2]
[369997733,1751817068850,-290.8932674,0.00019889,2]
[369997734,1751817068859,-152.0,0.00019889,2]
[369997735,1751817068869,-152.0,0.00019889,2]
[369997736,1751817068879,-152.0,0.00019889,2]
[369997737,1751817068888,-152.0,0.00019889,2]
[369997738,1751817068898,-152.0,0.00019889,2]
[369997739,1751817068907,-152.0,0.00019889,2]
[369997740,1751817068917,-1204.0,0.00019889,2]
[369997741,1751817068926,-152.0,0.00019889,2]
[369997742,1751817068936,-1204.0,0.00019889,2]
[369997743,1751817068946,-152.0,0.00019889,2]
[369997744,1751817068956,-1204.0,0.00019889,2]
[369997745,1751817068966,-152.0,0.00019889,2]
[369997746,1751817068977,-1204.0,0.00019889,2]
[369997747,1751817068987,-152.0,0.00019889,2]
[369997748,1751817068998,-1204.0,0.00019889,2]
[369997749,1751817069010,-152.0,0.00019889,2]
[369997750,1751817069020,-1204.0,0.00019889,2]
[369997751,1751817069031,-152.0,0.00019889,2]
[369997752,1751817069042,-1204.0,0.00019889,2]
[369997753,1751817069053,-152.0,0.00019889,2]
[369997754,1751817069063,-206.95903189,0.00019889,2]
[369997755,1751817069074,-1204.0,0.00019889,2]
[369997756,1751817069084,-1204.0,0.00019889,2]
[369997757,1751817069095,-1204.0,0.00019889,2]
[369997758,1751817069105,-1204.0,0.00019889,2]
[369997759,1751817069115,-1204.0,0.00019889,2]
[369997760,1751817069125,-1204.0,0.00019889,2]
[369997761,1751817069135,-201.66484984,0.00019889,2]
[369997762,1751817069145,-302.54761941,0.00019899,3]
[369997763,1751817069155,-50882.20016525,0.000199,2]
[369997764,1751817069166,-210.1,0.000199,2]
[369997765,1751817069177,-210.1,0.000199,2]
[369997766,1751817069187,-210.28571445,0.000199,7]
[369997767,1751817069197,-836.76783547,0.000199,7]
[369997768,1751817069207,-3600.0,0.000199,7]
[369997769,1751817069217,-424.40811723,0.000199,3]
[369997770,1751817069227,-157.15422454,0.000199,2]
[369997771,1751817069236,-5163.58025585,0.000199,2]
[369997772,1751817069246,-1705.60002289,0.000199,2]
[369997773,1751817069256,-161.20066263,0.000199,2]
[369997774,1751817069266,-152.0,0.00019904,3]
[369997775,1751817069275,-2532.33276781,0.00019918,2]
[369997776,1751817069284,-168.0,0.00019924,2]
[369997777,1751817069294,-168.0,0.00019937,2]
[369997778,1751817069304,-159.07,0.00019938,2]
[369997779,1751817069313,-1000.0,0.00019945,2]
[369997780,1751817069323,-168.0,0.00019965,2]
[369997781,1751817069332,-300.0,0.0001997,2]
[369997782,1751817069342,-300.0,0.0001997,2]
[369997783,1751817069356,-300.0,0.0001997,2]
[369997784,1751817069366,-400.0,0.0001997,2]
[369997785,1751817069375,-400.0,0.0001997,2]
[369997786,1751817069387,-400.0,0.0001997,2]
[369997787,1751817069397,-159.87273048,0.00019973,2]
[369997788,1751817069407,-500.0,0.00019973,2]
[369997789,1751817069418,-159.87387036,0.00019973,2]
[369997790,1751817069431,-500.0,0.00019984,2]
[369997791,1751817069441,-66201.49746525,0.00019985,2]
[369997792,1751817069453,-151.0,0.00019985,2]
[369997793,1751817069463,-626.85,0.00019985,2]
[369997794,1751817069475,-4472.2645135,0.00019986,2]
[369997795,1751817069485,-3772.7568971,0.00019986,2]
[369997796,1751817069495,-1704.8374383,0.00019986,2]
[369997797,1751817069505,-1438.1835386,0.00019986,2]
[369997798,1751817069515,-67884.0133599,0.00019986,2]
[369997799,1751817069526,-57266.263842,0.00019986,2]
[369997800,1751817069537,-300.0,0.00019999,2]
[369997801,1751817069547,-626.85,0.00019999,2]
[369997802,1751817069557,-626.85,0.00019999,2]
[369997803,1751817069567,-626.85,0.00019999,2]
[369997804,1751817069578,-626.85,0.00019999,2]
[369997805,1751817069587,-626.85,0.00019999,2]
[369997806,1751817069597,-626.85,0.00019999,2]
[369997807,1751817069608,-626.85,0.00019999,2]
[369997808,1751817069618,-500.0,0.00019999,2]
[369997809,1751817069629,-45631.05503048,0.0002,2]
[369997810,1751817069638,-150.0,0.0002,2]
[369997811,1751817069649,-150.0,0.0002,2]
[369997812,1751817069659,-150.0,0.0002,2]
[369997813,1751817069669,-150.0,0.0002,2]
[369997814,1751817069680,-502.0,0.0002,2]
[369997815,1751817069691,-1036.0,0.0002,2]
[369997816,1751817069702,-150.0,0.0002,2]
[369997817,1751817069712,-150.0,0.0002,2]
[369997818,1751817069721,-150.0,0.0002,2]
[369997819,1751817069731,-500.0,0.0002,2]
[369997820,1751817069741,-150.0,0.0002,2]
[369997821,1751817069752,-1011.0,0.0002,2]
[369997822,1751817069761,-150.0,0.0002,2]
[369997823,1751817069772,-584.0,0.0002,2]
[369997824,1751817069782,-150.0,0.0002,2]
[369997825,1751817069792,-150.0,0.0002,2]
[369997826,1751817069802,-303.60745417,0.0002,2]
[369997827,1751817069812,-10000.0,0.0002,2]
[369997828,1751817069823,-1494.10730526,0.0002,2]
[369997829,1751817069832,-4338.37472103,0.0002,2]
[369997830,1751817069843,-484.9498198,0.0002,2]
[369997831,1751817069852,-6081.59466664,0.0002,2]
[369997832,1751817069862,-7500.0,0.0002,2]
[369997833,1751817069872,-5700.41140268,0.0002,2]
[369997834,1751817069882,-3950.0,0.0002,2]
[369997835,1751817069892,-1261.61358509,0.0002,2]
[369997836,1751817069902,-151841.98908422,0.0002,2]
[369997837,1751817069913,-92682.62735971,0.0002,2]
[369997838,1751817069923,-73786.45770305,0.0002,4]
[369997840,1751817204265,2001.0,0.00030136,120]
[369997841,1751817225941,2600.0,0.0003,120]
[369997842,1751817324291,748.8003585,0.0003,120]
[369997844,1751817374925,1699.0,0.00030137,120]
[369997845,1751817377290,3093.33012153,0.00030137,120]
[369997848,1751817474274,883.1974204,0.00030136,120]
[369997854,1751817703088,1000.0,0.00029863,120]
[369997855,1751817703154,1000.0,0.00029863,120]
[369997856,1751817703226,1000.0,0.00029863,120]
[369997857,1751817703438,489.40075138,0.00029863,120]
[369997858,1751817735419,626.242746,0.000301,120]
[369997860,1751817932330,150.0,0.00029609,120]
[369997861,1751817943887,24595.074097,0.000301,120]
[369997863,1751818012658,156.84,0.00013699,2]
[369997864,1751818014890,198.39,0.00024864,120]
[369997865,1751818015289,198.39,0.00027125,120]
[369997869,1751818171007,150.0,0.00025945,120]
[369997871,1751818230660,150.0,0.00024705,120]
[369997872,1751818232417,-536.0,0.00014231,2]
[369997873,1751818232427,-596.44290495,0.00017064,2]
[369997874,1751818232436,-2000.0,0.00017854,5]
[369997875,1751818232446,-277.42,0.00017977,2]
[369997876,1751818232455,-1000.0,0.00017977,2]
[369997877,1751818232465,-300.0,0.00018056,2]
[369997878,1751818232475,-446.87309505,0.00018056,2]
[369997879,1751818232489,-751.12690495,0.00018056,2]
[369997880,1751818232499,-23890.0,0.00018057,2]
[369997881,1751818232509,-198.39,0.00018083,2]
[369997882,1751818232518,-150.0,0.000181,2]
[369997883,1751818232527,-165.5,0.00018329,2]
[369997884,1751818232537,-666.0,0.00018444,2]
[369997885,1751818232547,-150.0,0.0001859,2]
[369997886,1751818232557,-214.48,0.00018597,2]
[369997887,1751818232566,-150.0,0.00018776,2]
[369997888,1751818232576,-536.0,0.00018808,7]
[369997889,1751818232585,-207.4,0.00018881,2]
[369997890,1751818232594,-300.0,0.00018891,2]
[369997891,1751818232604,-1391.14392867,0.000189,2]
[369997892,1751818232613,-490.9,0.00019,2]
[369997893,1751818232623,-285.19876846,0.00019011,2]
[369997894,1751818232632,-150.0,0.0001907,2]
[369997895,1751818232641,-155.01370335,0.00019078,2]
[369997896,1751818232651,-157.38534327,0.00019078,2]
[369997897,1751818232661,-181.07694082,0.00019078,2]
[369997898,1751818232670,-2538.01080078,0.00019078,2]
[369997941,1751818238968,-1714.88008183,0.00018245,2]
[369997944,1751818239048,-2157.6873113,0.00018245,2]
[369998104,1751818240594,-2963.80965893,0.00018245,2]
[369998106,1751818240606,-759.48440006,0.00018245,2]
[369998131,1751818240833,-2713.54074672,0.00018245,2]
[369998133,1751818240843,-883.23619922,0.00019078,2]
[369998135,1751818240853,-2500.0,0.00019078,2]
[369998137,1751818240863,-159.9681,0.000191,2]
[369998139,1751818240872,-151.0,0.00019166,2]
[369998141,1751818240882,-151.0,0.00019166,2]
[369998143,1751818240892,-151.0,0.00019166,2]
[369998145,1751818240902,-151.0,0.00019166,2]
[369998147,1751818240911,-151.0,0.00019166,2]
[369998149,1751818240920,-151.0,0.00019166,2]
[369998151,1751818240930,-151.0,0.00019166,2]
[369998153,1751818240940,-151.0,0.00019166,2]
[369998155,1751818240949,-300.788376,0.00019166,2]
[369998157,1751818240958,-245.08,0.00019168,2]
[369998160,1751818240968,-272.01149877,0.00019177,2]
[369998161,1751818240978,-160.0,0.00019178,2]
[369998164,1751818240987,-210.28571445,0.00019178,2]
[369998166,1751818240997,-836.76783547,0.00019178,2]
[369998168,1751818241007,-490.0,0.00019178,2]
[369998170,1751818241016,-492.16481323,0.00019178,2]
[369998171,1751818241026,-460.0,0.00019178,2]
[369998174,1751818241035,-460.0,0.00019178,2]
[369998176,1751818241045,-460.0,0.00019178,2]
[369998178,1751818241055,-311.69399496,0.00019178,2]
[369998180,1751818241067,-148.30600504,0.00019178,2]
[369998182,1751818241076,-460.0,0.00019178,2]
[369998184,1751818241085,-151.0,0.00019178,2]
[369998186,1751818241095,-151.0,0.00019178,2]
[369998188,1751818241104,-151.0,0.00019178,2]
[369998190,1751818241114,-558.82596909,0.00019178,2]
[369998192,1751818241125,-500.0,0.00019178,2]
[369998194,1751818241134,-460.0,0.00019178,2]
[369998196,1751818241143,-460.0,0.00019178,2]
[369998198,1751818241152,-460.0,0.00019178,2]
[369998200,1751818241161,-68.90998187,0.00019178,2]
[369998486,1751818243783,-111.09001813,0.00019178,2]
[369998489,1751818243793,-460.0,0.00019178,2]
[369998492,1751818243803,-415.25970246,0.00019178,2]
[369998872,1751818246451,-436.95057477,0.00019078,2]
[369998890,1751818246690,-500.0,0.00019078,2]
[369999969,1751818290644,150.0,0.0002587,120]
[370000014,1751818350984,150.0,0.00024863,120]
[370000039,1751818411261,150.0,0.00024808,120]
[370000056,1751818470904,150.0,0.00026425,120]
[370000155,1751818773825,150.0,0.00027782,120]
[370000160,1751818784176,1000.0,0.00030136,120]
[370000161,1751818795021,1000.0,0.00030136,120]
[370000166,1751818808862,1088.8273656,0.00030136,120]
[370000181,1751818874574,1000.0,0.00030136,120]
[370000185,1751818881574,1000.0,0.00030136,120]
[370000187,1751818890726,150.0,0.00028882,120]
[370000188,1751818890766,1000.0,0.00030136,120]
[370000222,1751819072642,169.31,0.00027171,120]
[370000228,1751819110032,-829.0,0.00017999,2]
[370000229,1751819110063,-300.0,0.00017999,2]
[370000230,1751819110090,-6376.10049328,0.00018,2]
[370000231,1751819113629,-7505.10049328,0.00018,2]
[370000236,1751819131148,150.0,0.00027844,120]
[370000256,1751819273276,2195.0,0.00030137,120]
[370000300,1751819431426,150.0,0.00028793,120]
[370000306,1751819431586,-300.0,0.00015099,2]
[370000307,1751819431596,-1196.2292605,0.000151,2]
[370000308,1751819431640,-832.59746275,0.000151,2]
[370000309,1751819431653,-478.97690931,0.000151,2]
[370000310,1751819431665,-1088.8,0.000151,2]
[370000311,1751819431700,-728.37536817,0.000151,2]
[370000312,1751819431711,-2190.25189051,0.000151,2]
[370000313,1751819431724,-1886.39434612,0.000151,2]
[370000314,1751819431754,-920.06947041,0.000151,2]
[370000315,1751819431766,-823.86348937,0.000151,2]
[370000316,1751819431777,-273.935,0.000151,2]
[370000317,1751819431809,-506.36,0.000151,2]
[370000318,1751819431865,-224.26168447,0.000151,2]
[370000319,1751819431875,-1538.55318303,0.00018,2]
[370000339,1751819437625,-819.68342979,0.00017995,2]
[370000556,1751819439937,-375.87657021,0.00017995,2]
[370000558,1751819439947,-3617.52533389,0.00018,2]
[370000564,1751819439991,-437.98069753,0.00018,2]
[370000826,1751819442635,-18029.84029227,0.00018,2]
[370000828,1751819442644,-1448.54,0.00018013,2]
[370000830,1751819442654,-150.0,0.000181,2]
[370000832,1751819442663,-169.31,0.00018114,2]
[370000834,1751819442672,-503.58,0.00018136,2]
[370000836,1751819442681,-260.63,0.00018229,2]
[370000838,1751819442690,-1001.02970773,0.00018318,2]
[370000890,1751819445566,-494.66,0.00018318,2]
[370000891,1751819445839,-1923.054639,0.00018318,2]
[370000892,1751819445859,-535.72565327,0.00018318,2]
[370000893,1751819445869,-1000.0,0.0001834,2]
[370000894,1751819445879,-173.99069529,0.0001834,2]
[370000896,1751819445888,-277.42,0.00018398,2]
[370000898,1751819445897,-172.77485144,0.00018437,2]
[370000908,1751819550847,150.0,0.00022748,120]
[370000911,1751819578406,164.2,0.00030137,120]
[370000915,1751819610592,150.0,0.00024698,120]
[370000923,1751819670608,150.0,0.00029409,120]
[370000936,1751819850906,150.0,0.00029052,120]
[370000947,1751820016228,2184.0,0.00030136,120]
[370000949,1751820120414,187.21,0.00025904,120]
[370000953,1751820344721,156.84,0.00013699,2]
[370000954,1751820389094,521.0,0.00016385,2]
[370000966,1751820618593,150.0,0.0001695,2]
[370000971,1751820631705,-164.94287577,0.00017011,2]
[370000972,1751820631714,-300.40515839,0.00017053,2]
[370000973,1751820631759,-3544.48484161,0.00017053,2]
[370000974,1751820631768,-273.46,0.00017111,2]
[370000975,1751820631779,-181.515989,0.00017111,2]
[370000976,1751820631789,-194.16,0.00017141,2]
[370000977,1751820631798,-187.21,0.00017269,2]
[370000978,1751820631808,-792.66,0.00017271,2]
[370000979,1751820631817,-251.0,0.00017473,2]
[370000980,1751820631827,-1200.0,0.00017473,2]
[370000981,1751820631837,-4849.91,0.00017474,2]
[370000982,1751820631846,-175.77,0.00017498,2]
[370000983,1751820631856,-1158.0,0.00017501,2]
[370000984,1751820631866,-21120.38,0.00017502,2]
[370000985,1751820631875,-7073.44,0.00017507,2]
[370000986,1751820631885,-164.94287577,0.00017564,2]
[370000987,1751820631894,-168.65,0.00017615,2]
[370000988,1751820631904,-1000.0,0.00017626,2]
[370000989,1751820631913,-409.25,0.00017679,2]
[370000990,1751820631924,-312.77,0.00017693,2]
[370000991,1751820631934,-171.58,0.00017694,2]
[370000992,1751820631943,-666.0,0.00017709,2]
[370000993,1751820631953,-1215.16,0.0001798,2]
[370000994,1751820631963,-200.0,0.00018,2]
[370000995,1751820631972,-159.0,0.00018061,2]
[370000996,1751820631983,-1352.58605512,0.00018064,2]
[370000997,1751820631992,-6545.51258804,0.00018065,2]
[370000998,1751820632002,-303.69,0.00018075,2]
[370000999,1751820632011,-303.85,0.00018075,2]
[370001000,1751820632021,-302.01,0.00018075,2]
[370001001,1751820632032,-150.0,0.00018077,2]
[370001002,1751820632041,-159.0,0.00018077,2]
[370001003,1751820632051,-159.0,0.00018094,2]
[370001004,1751820632060,-150.0,0.000181,2]
[370001005,1751820632070,-159.0,0.0001811,2]
[370001006,1751820632079,-164.94287577,0.00018116,2]
[370001007,1751820632088,-159.0,0.00018127,2]
[370001008,1751820632097,-2987.41752611,0.00018141,2]
[370001009,1751820632106,-300.0,0.00018141,2]
[370001010,1751820632115,-159.0,0.00018143,2]
[370001011,1751820632124,-127939.35574109,0.00018158,2]
[370001012,1751820632134,-921.1,0.00018158,2]
[370001014,1751820632143,-719.71,0.00018158,2]
[370001016,1751820632152,-159.0,0.00018159,2]
[370001018,1751820632162,-159.0,0.00018176,2]
[370001020,1751820632171,-150.0,0.00018181,2]
[370001022,1751820632180,-181.9474721,0.00018184,2]
[370001024,1751820632189,-273.65795232,0.00018184,2]
[370001026,1751820632198,-9707.3990384,0.00018184,2]
[370001028,1751820632207,-302.28,0.00018185,2]
[370001030,1751820632217,-302.94,0.00018185,2]
[370001032,1751820632226,-159.0,0.00018192,2]
[370001034,1751820632235,-159.0,0.00018209,2]
[370001035,1751820632244,-305.55,0.00018216,2]
[370001038,1751820632254,-300.16,0.00018216,2]
[370001039,1751820632263,-159.0,0.00018225,2]
[370001041,1751820632273,-159.0,0.00018241,2]
[370001044,1751820632284,-33773.52,0.0001825,2]
[370001046,1751820632294,-606.17,0.00018254,2]
[370001048,1751820632303,-953.59,0.00018254,2]
[370001050,1751820632313,-23900.0,0.00018254,2]
[370001052,1751820632323,-209.21711344,0.0001827,2]
[370001054,1751820632332,-153.97,0.0001827,2]
[370001056,1751820632342,-153.97,0.0001827,2]
[370001058,1751820632352,-158.24077888,0.00018273,2]
[370001060,1751820632361,-500.0,0.00018273,2]
[370001062,1751820632370,-500.0,0.00018273,2]
[370001064,1751820632379,-159.90379383,0.00018273,2]
[370001066,1751820632389,-500.40757004,0.00018273,2]
[370001068,1751820632398,-500.0,0.00018273,2]
[370001070,1751820632407,-500.0,0.00018273,2]
[370001072,1751820632417,-500.0,0.00018273,2]
[370001074,1751820632426,-591.73286324,0.00018273,2]
[370001076,1751820632435,-500.0,0.00018273,2]
[370001078,1751820632444,-500.0,0.00018273,2]
[370001080,1751820632453,-500.0,0.00018273,2]
[370001082,1751820632462,-510.63546993,0.00018273,2]
[370001083,1751820632473,-500.0,0.00018273,2]
[370001085,1751820632485,-500.0,0.00018273,2]
[370001088,1751820632494,-509.13464416,0.00018273,2]
[370001090,1751820632504,-475.40540292,0.00018279,2]
[370001092,1751820632514,-521.76196226,0.00018279,2]
[370001093,1751820632525,-500.0,0.00018279,2]
[370001096,1751820632536,-500.0,0.00018279,2]
[370001098,1751820632545,-500.0,0.00018279,2]
[370001099,1751820632554,-500.0,0.00018279,2]
[370001101,1751820632564,-500.0,0.00018279,2]
[370001103,1751820632572,-361.89809845,0.00018279,2]
[370001105,1751820632582,-459.03558565,0.00018279,2]
[370001107,1751820632591,-500.0,0.00018279,2]
[370001109,1751820632600,-571.6286909,0.00018279,2]
[370001111,1751820632609,-230.18096565,0.00018279,2]
[370001113,1751820632618,-300.0,0.00018279,2]
[370001115,1751820632627,-689350.15494546,0.0001828,2]
[370001118,1751820632648,-184918.31512085,0.0001828,2]
[370001121,1751820632668,-1359.9570992,0.0001828,2]
[370001124,1751820632685,-1132.0,0.0001828,2]
[370001126,1751820632696,-1240.5,0.0001828,2]
[370001128,1751820632710,-476.7379184,0.0001828,2]
[370001131,1751820632721,-280.46411289,0.0001828,2]
[370001133,1751820632733,-4367.6,0.0001828,2]
[370001155,1751820633585,250.0,0.00016942,2]
[370001165,1751820638140,-324.2973,0.00018064,2]
[370001340,1751820640066,-63645.38057054,0.00018064,2]
[370001342,1751820640075,-114021.01267147,0.0001828,2]
[370001353,1751820640172,-3263.99999998,0.0001828,2]
[370001356,1751820640184,-1076.2,0.0001828,2]
[370001537,1751820643069,-869.81657088,0.0001828,2]
[370001538,1751820643081,-425.35099468,0.0001828,2]
[370001597,1751820645880,-212349.71772254,0.0001828,2]
[370001598,1751820645889,-290.19,0.00018284,2]
[370001599,1751820645899,-150.0,0.00018298,2]
[370001600,1751820645908,-2987.41752604,0.00018336,2]
[370001601,1751820645917,-150.0,0.00018341,2]
[370001602,1751820645927,-9707.39903837,0.00018375,2]
[370001603,1751820645936,-1491.0,0.00018389,2]
[370001604,1751820645945,-250.0,0.00018414,2]
[370001605,1751820645955,-360.05145891,0.00018419,2]
[370001606,1751820645964,-151.0,0.00018431,2]
[370001607,1751820645973,-300.0,0.00018431,2]
[370001608,1751820645982,-584.63411221,0.00018431,2]
[370001609,1751820645991,-160.0,0.00018431,2]
[370001610,1751820646000,-500.0,0.00018431,2]
[370001611,1751820646009,-500.0,0.00018431,2]
[370001612,1751820646018,-500.0,0.00018431,2]
[370001613,1751820646027,-500.0,0.00018431,2]
[370001614,1751820646038,-300.0,0.00018431,2]
[370001615,1751820646047,-500.0,0.00018431,2]
[370001616,1751820646056,-300.0,0.00018431,2]
[370001617,1751820646065,-500.0,0.00018431,2]
[370001618,1751820646074,-400.0,0.00018431,2]
[370001619,1751820646083,-497.22618417,0.00018431,2]
[370001620,1751820646092,-207.4,0.00018431,2]
[370001621,1751820646102,-246.93088484,0.00018431,2]
[370001622,1751820646111,-645.55098,0.00018437,2]
[370001623,1751820646120,-150.0,0.00018489,2]
[370001624,1751820646129,-168.0,0.0001851,2]
[370001625,1751820646138,-150.0,0.00018528,2]
[370001626,1751820646147,-2987.41752604,0.00018532,2]
[370001627,1751820646156,-9707.39903837,0.00018565,2]
[370001628,1751820646166,-171.58,0.00018579,2]
[370001629,1751820646177,-150.0,0.0001859,2]
[370001630,1751820646187,-1491.0,0.00018632,2]
[370001631,1751820646198,-168.0,0.00018643,2]
[370001632,1751820646207,-645.55098,0.0001866,2]
[370001633,1751820646217,-150.0,0.00018687,2]
[370001634,1751820646225,-150.0,0.00018712,2]
[370001635,1751820646235,-2987.41752604,0.00018727,2]
[370001636,1751820646244,-9707.39903837,0.00018756,2]
[370001637,1751820646253,-179.86,0.00018802,2]
[370001639,1751820646263,-150.0,0.00018817,2]
[370001641,1751820646272,-168.0,0.00018869,2]
[370001643,1751820646282,-2430.2,0.0001888,2]
[370001645,1751820646294,-1373.3984859,0.000189,2]
[370001647,1751820646304,-2987.41752604,0.00018923,2]
[370001649,1751820646313,-168.0,0.00018925,2]
[370001650,1751820646322,-168.0,0.00018932,2]
[370001651,1751820646331,-9707.39903837,0.00018947,2]
[370001652,1751820646340,-150.0,0.00018958,2]
[370001653,1751820646349,-168.0,0.00018978,2]
[370001654,1751820646359,-249.6162,0.00018978,2]
[370001655,1751820646369,-1489.3466,0.00018978,2]
[370001656,1751820646378,-150.0,0.00019,7]
[370001657,1751820646388,-485.61574832,0.00019005,2]
[370001658,1751820646400,-168.0,0.0001902,2]
[370001659,1751820646409,-3388.90865292,0.00019033,2]
[370001660,1751820646418,-1493.26700518,0.00019034,2]
[370001661,1751820646427,-168.0,0.00019036,2]
[370001662,1751820646435,-3943.80630354,0.00019038,2]
[370001663,1751820646445,-783.29441789,0.00019043,2]
[370001664,1751820646454,-16367.48492067,0.00019044,2]
[370001665,1751820646500,-1264.13,0.00019044,2]
[370001669,1751820688658,707.0,0.00016385,2]
[370001672,1751820791949,611.88,0.00027397,120]
[370001674,1751820922031,201.12672651,0.00029937,120]
[370001675,1751820986437,200.0,0.00029937,120]
[370001676,1751821027856,2994.03,0.00029937,120]
[370001677,1751821087208,172.42,0.00026732,120]
[370001689,1751821806768,156.84,0.00013699,2]
[370001690,1751821829700,521.0,0.00016746,2]
[370001696,1751821832079,-500.0,0.00017343,2]
[370001697,1751821832186,-2111.47932,0.00017343,2]
[370001698,1751821832197,-215.80669008,0.00017431,2]
[370001699,1751821832206,-3385.68,0.00017531,2]
[370001700,1751821832215,-250.0,0.00017588,2]
[370001701,1751821832224,-150.0,0.00017626,2]
[370001702,1751821832234,-1200.0,0.00017687,2]
[370001703,1751821832243,-1308.01,0.00017688,2]
[370001704,1751821832254,-1000.0,0.00017741,2]
[370001705,1751821832263,-300.0,0.00017747,2]
[370001706,1751821832273,-260.16689072,0.00017748,2]
[370001707,1751821832284,-332.3121055,0.00017748,2]
[370001708,1751821832295,-814.15100378,0.00017748,2]
[370001709,1751821832304,-166.94,0.00017808,2]
[370001710,1751821832314,-172.42,0.00017822,2]
[370001711,1751821832323,-151.0,0.00017849,2]
[370001712,1751821832333,-500.0,0.00018,2]
[370001713,1751821832343,-150.0,0.000181,2]
[370001714,1751821832353,-150.88,0.00018158,2]
[370001715,1751821832363,-404.28,0.00018178,2]
[370001716,1751821832373,-150.88,0.0001818,2]
[370001717,1751821832382,-666.0,0.00018198,2]